bitfinex-derivatives/quotes_SOLF0:USTF0_20250901
["timestamp","ask_amount","ask_price","bid_price","bid_amount"]
[1756687129423,3.59969536,199.11,199.06,4.63538563]
[1756687129624,3.59969536,199.11,199.0,7.9]
[1756687129928,3.59969536,199.11,199.01,4.63495444]
[1756687130127,15.11,199.1,199.02,4.63495444]
[1756687130327,3.59969536,199.03,198.93,7.9]
[1756687130525,132.84,199.02,198.94,4.63567296]
[1756687130728,132.84,199.02,198.95,4.63567296]
[1756687130926,132.84,199.02,198.96,4.63567296]
[1756687131122,132.84,199.02,198.89,7.9]
[1756687131123,3.59969536,199.0,198.89,7.9]
[1756687131323,3.59969536,199.0,198.9,4.63487708]
[1756687131523,3.59969536,199.0,198.91,4.63487708]
[1756687131825,3.59969536,199.0,198.92,4.63487708]
[1756687132026,3.59969536,198.97,198.93,4.63487708]
[1756687132228,132.84,198.96,198.89,7.9]
[1756687132530,132.84,198.96,198.9,4.62863188]
[1756687132726,132.84,198.96,198.91,4.62863188]
[1756687133027,132.84,198.96,198.92,4.62863188]
[1756687133223,337.72,199.01,198.86,7.9]
[1756687133419,3.59969536,198.99,198.88,7.9]
[1756687133625,3.59969536,198.99,198.9,7.9]
[1756687133826,3.59969536,198.99,198.91,4.62629268]
[1756687134122,3.59969536,198.93,198.81,4.20747855]
[1756687134327,132.84,198.92,198.82,4.62554035]
[1756687134528,132.84,198.92,198.83,4.62554035]
[1756687134727,132.84,198.92,198.85,7.9]
[1756687134928,132.84,198.92,198.86,4.62554035]
[1756687135127,132.86,198.91,198.87,4.62554035]
[1756687135326,132.86,198.91,198.85,7.9]
[1756687135527,132.86,198.91,198.86,4.62173339]
[1756687135725,132.86,198.91,198.87,4.62173339]
[1756687135925,132.86,198.91,198.85,7.9]
[1756687136128,132.86,198.91,198.86,4.62173339]
[1756687136329,132.86,198.91,198.87,4.62173339]
[1756687136530,132.86,198.91,198.81,7.9]
[1756687136730,132.86,198.91,198.82,4.61976428]
[1756687136929,132.86,198.91,198.83,4.61976428]
[1756687137129,132.86,198.91,198.84,4.61976428]
[1756687137331,132.86,198.91,198.85,4.62007666]
[1756687137526,132.86,198.91,198.86,4.62007666]
[1756687137728,132.86,198.91,198.87,4.62007666]
[1756687137928,132.86,198.91,198.81,7.9]
[1756687138232,132.86,198.91,198.82,4.6178266]
[1756687138429,132.86,198.91,198.83,4.6178266]
[1756687138629,132.86,198.91,198.81,7.9]
[1756687138630,132.86,198.91,198.84,4.6178266]
[1756687138831,132.86,198.91,198.85,4.6178266]
[1756687139033,132.86,198.91,198.86,4.6178266]
[1756687139226,132.86,198.91,198.81,7.9]
[1756687139430,3.59969536,198.95,198.83,7.9]
[1756687139625,3.59969536,198.95,198.72,4.20747855]
[1756687139626,132.88,198.94,198.85,7.9]
[1756687139825,132.88,198.94,198.86,4.61474526]
[1756687140031,132.88,198.94,198.87,4.61474526]
[1756687140227,3.59969536,199.0,198.89,7.9]
[1756687140534,132.88,198.99,198.9,4.61474526]
[1756687140833,132.88,198.99,198.89,7.9]
[1756687140834,132.88,198.99,198.91,4.61474526]
[1756687141032,337.72,199.01,198.92,4.61474526]
[1756687141331,470.6,199.01,198.93,12.51474526]
[1756687141634,470.6,199.01,198.94,4.61474526]
[1756687141835,470.6,199.01,198.95,4.61474526]
[1756687142134,470.6,199.01,198.96,12.51474526]
[1756687142333,470.6,199.01,198.97,4.61474526]
[1756687142529,470.6,199.01,198.9,7.9]
[1756687142837,3.59969536,199.0,198.91,4.61656763]
[1756687143037,3.59969536,199.0,198.9,7.9]
[1756687143038,3.59969536,199.0,198.92,4.61656763]
[1756687143226,470.6,199.01,198.93,12.51656763]
[1756687143430,470.6,199.01,198.94,4.61656763]
[1756687143631,470.6,199.01,198.95,4.61656763]
[1756687143828,470.6,199.01,198.97,7.9]
[1756687144038,132.88,199.0,198.98,4.61656763]
[1756687144240,132.88,199.0,198.99,4.61656763]
[1756687144436,337.72,199.01,198.99,12.51656763]
[1756687144632,5.38246758,199.14,199.0,12.51656763]
[1756687144633,132.88,199.04,199.0,12.51656763]
[1756687144833,132.88,199.03,199.01,12.51656763]
[1756687145034,132.88,199.03,199.02,4.61656763]
[1756687145739,132.88,199.03,198.91,7.9]
[1756687146037,136.47969536,199.03,198.92,4.61996961]
[1756687146332,136.47969536,199.03,198.93,4.61996961]
[1756687146538,136.47969536,199.03,198.94,4.61996961]
[1756687146736,136.47969536,199.03,198.95,4.62200451]
[1756687146938,136.47969536,199.03,198.96,4.62200451]
[1756687147136,3.59969536,199.0,198.97,4.62200451]
[1756687147339,3.59969536,199.0,198.86,7.9]
[1756687147640,3.59969536,199.0,198.88,7.9]
[1756687147840,3.59969536,199.0,198.89,4.62326022]
[1756687148036,3.59969536,199.0,198.9,4.62326022]
[1756687148236,3.59969536,199.0,198.91,4.62326022]
[1756687148532,3.59969536,199.0,198.92,4.62326022]
[1756687148738,3.59969536,199.0,198.93,4.62326022]
[1756687148941,3.59969536,199.0,198.94,4.62326022]
[1756687149141,3.59969536,199.0,198.95,4.62326022]
[1756687149344,3.59969536,199.0,198.88,7.9]
[1756687149543,3.59969536,199.0,198.89,4.62367878]
[1756687149842,3.59969536,199.0,198.9,4.62367878]
[1756687150043,3.59969536,199.0,198.91,4.62367878]
[1756687150240,3.59969536,199.0,198.92,4.62367878]
[1756687150542,3.59969536,199.0,198.93,4.62367878]
[1756687150739,3.59969536,199.0,198.94,4.62367878]
[1756687150940,3.59969536,199.0,198.95,4.62367878]
[1756687151140,132.88,199.03,198.88,7.9]
[1756687151336,3.59969536,199.03,198.9,7.95]
[1756687151539,132.42,199.02,198.91,4.62391061]
[1756687151843,132.42,199.02,198.92,4.62391061]
[1756687152037,132.42,199.02,198.93,4.62391061]
[1756687152238,132.42,199.02,198.94,4.62391061]
[1756687152439,132.42,199.02,198.95,4.62391061]
[1756687152639,132.42,199.02,198.9,7.95]
[1756687152943,3.59969536,199.0,198.91,4.62324895]
[1756687153141,3.59969536,199.0,198.92,4.62324895]
[1756687153336,3.59969536,199.0,198.93,4.62324895]
[1756687153541,3.59969536,198.97,198.84,7.95]
[1756687153734,3.59969536,198.97,198.85,4.62376908]
[1756687153937,3.59969536,198.96,198.86,4.62376908]
[1756687154147,32.76,198.95,198.87,4.62376908]
[1756687154442,38.48,198.98,198.89,7.95]
[1756687154635,38.48,198.97,198.9,4.62376908]
[1756687154840,42.34,198.98,198.91,4.62376908]
[1756687155039,42.34,198.98,198.92,4.62376908]
[1756687155238,42.34,198.98,198.93,4.62376908]
[1756687155435,42.34,198.98,198.94,4.62376908]
[1756687155640,42.34,198.98,198.89,7.95]
[1756687155847,3.59969536,198.97,198.9,4.62472087]
[1756687156144,3.59969536,198.97,198.84,7.95]
[1756687156346,3.59969536,198.97,198.85,4.62518958]
[1756687156540,3.59969536,198.97,198.86,4.62518958]
[1756687156741,3.59969536,198.97,198.87,4.62518958]
[1756687157041,3.59969536,198.94,198.88,4.62518958]
[1756687157239,3.59969536,198.94,198.84,7.95]
[1756687157435,3.59969536,198.94,198.85,4.62429954]
[1756687157640,3.59969536,198.94,198.86,4.62429954]
[1756687157837,337.88,198.99,198.84,7.95]
[1756687158152,3.59969536,198.96,198.85,4.62055883]
[1756687158342,3.59969536,198.96,198.86,4.62055883]
[1756687158538,3.59969536,198.96,198.84,7.95]
[1756687158746,3.59969536,198.97,198.85,4.61936518]
[1756687159042,132.84,198.95,198.86,4.61936518]
[1756687159248,132.84,198.95,198.87,4.61936518]
[1756687159542,132.84,198.95,198.88,4.61936518]
[1756687159746,132.84,198.95,198.89,4.61936518]
[1756687159949,132.84,198.95,198.84,7.95]
[1756687160248,132.84,198.95,198.85,4.61817932]
[1756687160544,132.84,198.95,198.86,4.61817932]
[1756687160848,337.88,198.99,198.88,7.95]
[1756687161150,132.86,198.98,198.89,4.61817932]
[1756687161346,132.86,198.98,198.91,7.95]
[1756687161539,132.86,198.98,198.92,4.61817932]
[1756687161743,132.86,198.98,198.91,7.95]
[1756687161949,132.86,198.98,198.92,4.61717231]
[1756687162141,132.86,198.98,198.91,7.95]
[1756687162344,132.86,198.98,198.86,7.95]
[1756687162544,132.84,198.97,198.88,7.95]
[1756687162740,132.84,198.97,198.89,4.61744942]
[1756687163043,132.84,198.97,198.9,4.61744942]
[1756687163251,132.84,198.97,198.91,4.61744942]
[1756687163451,132.84,198.97,198.92,4.61744942]
[1756687163747,132.84,198.97,198.93,4.61744942]
[1756687163951,132.84,198.97,198.94,4.61744942]
[1756687164151,132.84,198.97,198.95,4.61744942]
[1756687164344,337.88,198.99,198.89,7.95]
[1756687164542,337.88,198.99,198.91,7.95]
[1756687164747,132.84,198.98,198.92,4.61986153]
[1756687164949,132.84,198.98,198.94,7.95]
[1756687165255,337.88,198.99,198.96,7.95]
[1756687165443,337.88,198.99,198.97,12.56986153]
[1756687165756,337.88,198.99,198.98,4.61986153]
[1756687167853,337.88,198.99,198.92,7.95]
[1756687168054,337.88,198.99,198.93,4.62852297]
[1756687168255,337.88,198.99,198.94,4.62852297]
[1756687168456,337.88,198.99,198.95,4.62852297]
[1756687168656,337.88,198.99,198.96,4.62852297]
[1756687168855,337.88,198.99,198.97,4.62852297]
[1756687169054,337.88,198.99,198.87,7.95]
[1756687169260,337.88,198.99,198.88,4.63119265]
[1756687169455,337.88,198.99,198.89,4.63119265]
[1756687169656,341.47969536,198.99,198.9,4.63119265]
[1756687169858,341.47969536,198.99,198.87,7.95]
[1756687169859,341.47969536,198.99,198.91,4.63119265]
[1756687170056,341.47969536,198.99,198.92,4.63119265]
[1756687170258,341.47969536,198.99,198.93,4.63119265]
[1756687170452,341.47969536,198.99,198.94,4.63119265]
[1756687170658,341.47969536,198.99,198.83,7.95]
[1756687170965,341.47969536,198.99,198.84,4.63512237]
[1756687171258,341.47969536,198.99,198.85,4.63512237]
[1756687171454,341.47969536,198.99,198.86,4.63512237]
[1756687171759,341.47969536,198.99,198.87,4.63512237]
[1756687171959,341.47969536,198.99,198.88,4.63512237]
[1756687172162,341.47969536,198.99,198.89,4.63512237]
[1756687172360,341.47969536,198.99,198.9,4.63512237]
[1756687172556,341.47969536,198.99,198.91,4.63512237]
[1756687172557,3.59969536,198.96,198.91,4.63512237]
[1756687172860,3.59969536,198.93,198.83,7.95]
[1756687174563,3.59969536,198.93,198.79,7.95]
[1756687175263,3.59969536,198.9,198.79,7.95]
[1756687175457,98.62,198.89,198.79,7.95]
[1756687177560,3.59969536,198.9,198.79,7.95]
[1756687177763,132.8,198.88,198.79,7.95]
[1756687177959,132.8,198.87,198.79,7.95]
[1756687179756,0.03,198.86,198.74,8.09]
[1756687180458,3.59969536,198.84,198.7,3.59969536]
[1756687180763,0.03,198.83,198.68,8.09]
[1756687181359,0.03,198.8,198.68,8.09]
[1756687181566,96.86,198.79,198.68,8.09]
[1756687182369,0.03,198.77,198.68,8.09]
[1756687183771,132.78,198.76,198.68,8.09]
[1756687183969,0.03,198.77,198.68,8.09]
[1756687184269,92.34,198.76,198.68,8.09]
[1756687184875,15.11,198.84,198.68,8.09]
[1756687184876,132.78,198.78,198.68,8.09]
[1756687185766,0.03,198.8,198.68,8.09]
[1756687185978,132.78,198.79,198.69,8.09]
[1756687188468,132.8,198.78,198.69,8.09]
[1756687188668,3.59969536,198.8,198.69,8.09]
[1756687188863,132.78,198.79,198.69,8.09]
[1756687189073,132.78,198.79,198.69,11.68969536]
[1756687189771,0.03,198.81,198.7,8.09]
[1756687189976,87.6,198.82,198.73,8.09]
[1756687191374,337.98,198.85,198.76,8.09]
[1756687191572,470.76,198.85,198.76,8.09]
[1756687191974,337.98,198.85,198.78,3.59969536]
[1756687192173,337.98,198.85,198.79,8.09]
[1756687193075,132.78,198.88,198.79,8.09]
[1756687193672,132.76,198.88,198.79,8.09]
[1756687194070,0.03,198.93,198.81,3.59969536]
[1756687194269,132.76,198.92,198.82,8.09]
[1756687196574,0.03,198.91,198.76,3.59969536]
[1756687196768,0.03,198.91,198.77,8.09]
[1756687197278,132.72,198.9,198.77,8.09]
[1756687197477,132.72,198.9,198.8,8.09]
[1756687200273,0.03,198.91,198.8,8.09]
[1756687200578,132.7,198.93,198.83,8.09]
[1756687200879,132.7,198.93,198.72,9.11024092]
[1756687200880,0.03,198.91,198.79,11.68969536]
[1756687201780,132.68,198.95,198.83,8.09]
[1756687202780,132.68,198.95,198.86,8.09]
[1756687202976,0.03,198.94,198.82,3.59969536]
[1756687203174,0.03,198.94,198.81,8.09]
[1756687203376,132.68,198.95,198.81,8.09]
[1756687203578,0.03,198.92,198.79,3.59969536]
[1756687203779,0.03,198.92,198.8,8.09]
[1756687205782,3.59969536,198.93,198.8,8.09]
[1756687206084,0.03,198.92,198.8,8.09]
[1756687207286,92.58,198.91,198.8,8.09]
[1756687207582,338.15,198.97,198.82,3.59969536]
[1756687207783,132.62,198.96,198.83,8.09]
[1756687208484,136.21969536,198.96,198.83,8.09]
[1756687210884,136.21969536,198.96,198.8,3.59969536]
[1756687211288,3.59969536,198.93,198.79,8.1]
[1756687212194,67.5,198.92,198.79,8.1]
[1756687212992,3.59969536,198.9,198.75,8.1]
[1756687214495,3.59969536,198.87,198.75,8.1]
[1756687214900,3.59969536,198.87,198.71,8.1]
[1756687215403,21.02,198.86,198.73,8.1]
[1756687215599,5.38246758,198.94,198.75,3.59969536]
[1756687215600,3.59969536,198.91,198.75,3.59969536]
[1756687215801,3.59969536,198.91,198.76,8.1]
[1756687216002,68.82,198.9,198.79,8.1]
[1756687216600,3.59969536,198.95,198.79,11.69969536]
[1756687216800,129.94,198.94,198.79,11.69969536]
[1756687217101,129.94,198.94,198.79,3.59969536]
[1756687217300,129.94,198.94,198.8,8.1]
[1756687218203,3.59969536,198.95,198.8,8.1]
[1756687218406,71.52,198.94,198.8,8.1]
[1756687218703,132.54,198.93,198.8,8.1]
[1756687218901,338.12,198.97,198.82,3.59969536]
[1756687219107,338.12,198.97,198.86,8.1]
[1756687219603,338.12,198.97,198.82,11.69969536]
[1756687219808,3.59969536,198.96,198.82,11.69969536]
[1756687220206,338.12,198.97,198.86,8.1]
[1756687220506,338.12,198.97,198.89,8.1]
[1756687224203,132.48,198.98,198.89,8.1]
[1756687224803,337.98,199.07,198.92,8.1]
[1756687225006,132.46,199.06,198.92,8.1]
[1756687225206,337.98,199.07,198.85,4.2041265]
[1756687225207,337.98,199.07,198.95,8.1]
[1756687225403,132.44,199.06,198.97,3.59969536]
[1756687226210,337.98,199.07,198.97,3.59969536]
[1756687226411,470.42,199.07,198.98,8.1]
[1756687226611,470.42,199.07,199.0,3.59969536]
[1756687227207,337.98,199.07,199.0,3.59969536]
[1756687227405,132.42,199.08,199.01,8.1]
[1756687230413,132.38,199.1,199.01,8.1]
[1756687234009,132.38,199.1,198.99,3.59969536]
[1756687235416,337.94,199.19,199.03,8.1]
[1756687235617,0.03,199.17,199.05,3.59969536]
[1756687237013,0.03,199.17,199.06,8.1]
[1756687238816,132.28,199.18,199.05,3.59969536]
[1756687239917,135.87969536,199.18,199.02,11.71969536]
[1756687240609,3.59969536,199.15,199.02,11.71969536]
[1756687240811,3.59969536,199.15,199.02,8.12]
[1756687241721,3.59969536,199.15,198.99,3.59969536]
[1756687244316,3.59969536,199.15,199.0,8.12]
[1756687244721,94.94,199.14,199.0,8.12]
[1756687246723,3.59969536,199.12,199.0,8.12]
[1756687247022,3.59969536,199.12,198.96,11.71969536]
[1756687247623,3.59969536,199.12,198.97,8.12]
[1756687248124,68.14,199.11,198.97,8.12]
[1756687248523,3.59969536,199.12,198.97,8.12]
[1756687248721,68.1,199.11,198.97,8.12]
[1756687249120,3.59969536,199.12,198.99,3.59969536]
[1756687249427,3.59969536,199.15,199.0,8.12]
[1756687249722,73.28,199.14,199.0,8.12]
[1756687254023,3.59969536,199.12,199.0,8.12]
[1756687254523,132.04,199.13,199.0,8.12]
[1756687255723,3.59969536,199.17,199.0,8.12]
[1756687256129,79.24,199.16,199.0,8.12]
[1756687257328,3.59969536,199.17,199.0,8.12]
[1756687257631,79.12,199.16,199.0,8.12]
[1756687257824,3.59969536,199.17,199.0,8.12]
[1756687258024,132.0,199.15,199.0,8.12]
[1756687258327,3.59969536,199.17,199.0,8.12]
[1756687258630,79.04,199.16,199.03,8.12]
[1756687259228,337.94,199.19,199.06,8.12]
[1756687259433,469.92,199.19,199.06,8.12]
[1756687259630,337.94,199.19,199.12,8.12]
[1756687260326,337.94,199.19,199.09,8.12]
[1756687260831,211.82577971,199.24,199.08,3.59969536]
[1756687260832,76.24608435,199.24,199.15,8.12]
[1756687262930,208.18608435,199.24,199.15,8.12]
[1756687263535,76.24608435,199.24,199.15,8.12]
[1756687263831,76.24608435,199.24,199.15,11.71969536]
[1756687264232,76.24608435,199.24,199.15,8.12]
[1756687264432,76.24608435,199.24,199.15,11.71969536]
[1756687266637,76.24608435,199.24,199.06,4.18731519]
[1756687266832,76.24608435,199.24,199.1,11.71969536]
[1756687267936,79.84577971,199.24,199.1,11.71969536]
[1756687268141,79.84577971,199.24,199.1,8.12]
[1756687269637,3.59969536,199.21,199.1,8.12]
[1756687270238,3.59969536,199.18,198.99,11.70731519]
[1756687270442,130.52,199.17,198.99,7.52]
[1756687270641,3.59969536,199.15,198.99,7.52]
[1756687271344,3.59969536,199.12,198.99,7.52]
[1756687271747,3.59969536,199.09,198.94,7.52]
[1756687271950,92.18,199.08,198.94,7.52]
[1756687272450,131.8,199.07,198.94,7.52]
[1756687272742,3.59969536,199.13,198.97,7.52]
[1756687273046,131.78,199.12,199.0,7.52]
[1756687273346,131.8,199.12,199.02,3.59969536]
[1756687273543,131.78,199.13,199.03,7.52]
[1756687273740,3.59969536,199.18,199.03,7.52]
[1756687274142,79.2,199.17,199.03,7.52]
[1756687274447,131.78,199.16,199.03,7.52]
[1756687274646,131.78,199.16,199.05,3.59969536]
[1756687274841,131.78,199.15,199.05,3.59969536]
[1756687275236,337.56,199.2,199.09,7.52]
[1756687275435,131.78,199.18,199.09,7.52]
[1756687275638,337.56,199.2,199.09,7.52]
[1756687275850,131.78,199.19,199.09,7.52]
[1756687276351,337.56,199.2,199.11,3.59969536]
[1756687276539,337.56,199.2,199.13,7.52]
[1756687278456,3.59969536,199.31,199.16,7.52]
[1756687278748,337.56,199.32,199.19,7.52]
[1756687279053,131.74,199.31,199.19,7.52]
[1756687281650,337.56,199.32,199.2,3.59969536]
[1756687281853,131.7,199.31,199.2,3.59969536]
[1756687282964,135.29969536,199.31,199.17,3.59969536]
[1756687283151,135.29969536,199.31,199.15,7.52]
[1756687283456,3.59969536,199.28,199.15,7.52]
[1756687283655,3.59969536,199.28,199.11,11.11969536]
[1756687284554,91.76,199.27,199.11,11.11969536]
[1756687288256,91.76,199.27,199.14,3.59969536]
[1756687288560,91.76,199.27,199.15,7.52]
[1756687288957,131.6,199.26,199.15,7.52]
[1756687290158,3.59969536,199.3,199.15,7.52]
[1756687290359,131.6,199.29,199.15,7.52]
[1756687291063,131.56,199.28,199.15,7.52]
[1756687291456,337.56,199.32,199.18,7.52]
[1756687291758,131.56,199.31,199.2,3.59969536]
[1756687291962,131.56,199.31,199.21,7.52]
[1756687292655,131.56,199.31,199.24,7.52]
[1756687293967,337.56,199.32,199.24,7.52]
[1756687294563,337.56,199.32,199.26,3.59969536]
[1756687294755,131.52,199.34,199.26,3.59969536]
[1756687294961,131.52,199.34,199.26,11.11969536]
[1756687295259,76.32885619,199.36,199.26,11.11969536]
[1756687295564,131.5,199.36,199.26,11.11969536]
[1756687296059,131.5,199.36,199.26,7.52]
[1756687297561,337.42,199.44,199.28,11.11969536]
[1756687297762,131.46,199.43,199.28,11.11969536]
[1756687301465,131.42,199.42,199.32,7.76]
[1756687302663,131.42,199.42,199.3,3.59969536]
[1756687305860,131.42,199.42,199.28,7.76]
[1756687306066,131.42,199.42,199.28,11.35969536]
[1756687308469,131.42,199.42,199.31,3.59969536]
[1756687308670,337.42,199.44,199.31,11.35969536]
[1756687308870,131.28,199.43,199.31,11.35969536]
[1756687309277,337.42,199.44,199.34,11.35969536]
[1756687309470,131.28,199.43,199.34,11.35969536]
[1756687310869,468.66,199.44,199.34,11.35969536]
[1756687311270,5.38246758,199.56,199.27,12.68]
[1756687311271,131.24,199.47,199.37,11.35969536]
[1756687312874,3.59969536,199.54,199.4,3.59969536]
[1756687313074,65.6,199.53,199.37,7.76]
[1756687313368,65.6,199.53,199.38,3.59969536]
[1756687314967,65.6,199.53,199.41,3.59969536]
[1756687315167,337.22,199.56,199.41,3.59969536]
[1756687315370,126.42,199.55,199.41,3.59969536]
[1756687315584,337.22,199.56,199.41,3.59969536]
[1756687315585,131.16,199.54,199.41,3.59969536]
[1756687315877,131.16,199.53,199.44,3.59969536]
[1756687316977,131.14,199.53,199.44,3.59969536]
[1756687320382,131.14,199.53,199.32,3.59969536]
[1756687320679,131.14,199.53,199.42,3.59969536]
[1756687320986,131.06,199.52,199.45,3.59969536]
[1756687321279,131.06,199.54,199.45,3.59969536]
[1756687323383,337.22,199.56,199.45,3.59969536]
[1756687323682,131.04,199.55,199.45,3.59969536]
[1756687325478,131.0,199.54,199.45,3.59969536]
[1756687325674,337.22,199.56,199.48,3.59969536]
[1756687327287,337.22,199.56,199.49,7.76]
[1756687327479,3.59969536,199.66,199.51,3.59969536]
[1756687327681,336.98,199.68,199.51,3.59969536]
[1756687327881,130.96,199.67,199.54,3.59969536]
[1756687328285,130.96,199.67,199.52,7.76]
[1756687328485,130.96,199.67,199.53,3.59969536]
[1756687328784,130.96,199.67,199.41,12.6]
[1756687328785,3.59969536,199.64,199.49,3.59969536]
[1756687328982,130.94,199.63,199.48,3.59969536]
[1756687329184,0.87215859,199.67,199.51,3.59969536]
[1756687329378,130.92,199.66,199.54,3.59969536]
[1756687329785,336.98,199.68,199.54,3.59969536]
[1756687329984,130.92,199.67,199.54,3.59969536]
[1756687330888,336.98,199.68,199.57,3.59969536]
[1756687331190,130.9,199.67,199.57,3.59969536]
[1756687332089,336.98,199.68,199.59,2.23638802]
[1756687332388,130.88,199.67,199.62,2.23638802]
[1756687333190,336.98,199.68,199.62,2.23638802]
[1756687333392,130.86,199.67,199.62,2.23638802]
[1756687333995,130.86,199.67,199.59,3.57760889]
[1756687335693,130.86,199.67,199.59,11.02760889]
[1756687336092,130.86,199.67,199.59,3.57760889]
[1756687336697,130.86,199.67,199.58,3.57760889]
[1756687336900,130.8,199.66,199.58,3.57760889]
[1756687337398,336.98,199.68,199.58,3.57760889]
[1756687337595,130.78,199.67,199.58,3.57760889]
[1756687337794,5.38246758,199.86,199.67,7.45]
[1756687337991,5.38246758,200.03,199.79,3.57760889]
[1756687338193,3.57760889,199.99,199.79,3.57760889]
[1756687338396,75.68,199.98,199.76,7.45]
[1756687338701,3.57760889,199.96,199.79,3.57760889]
[1756687339399,75.68,199.98,199.82,3.57760889]
[1756687340289,75.68,199.98,199.79,7.45]
[1756687340290,3.57760889,200.01,199.84,3.57760889]
[1756687340492,100.48,200.0,199.84,3.57760889]
[1756687341203,99.14,199.99,199.88,3.57760889]
[1756687341502,131.48,199.99,199.91,3.57760889]
[1756687341705,131.48,199.99,199.89,7.45]
[1756687341897,131.48,199.99,199.89,11.02760889]
[1756687342700,131.48,199.99,199.89,3.57760889]
[1756687342893,131.48,199.99,199.85,3.57760889]
[1756687343497,125.64,199.98,199.85,3.57760889]
[1756687343702,125.64,199.98,199.88,3.57760889]
[1756687344199,3.57760889,200.05,199.88,3.57760889]
[1756687344404,73.04,200.04,199.88,3.57760889]
[1756687344598,3.57760889,200.05,199.88,3.57760889]
[1756687344793,132.96,200.04,199.88,3.57760889]
[1756687345102,3.57760889,200.02,199.86,7.45]
[1756687345904,3.57760889,199.96,199.82,3.57760889]
[1756687346099,100.64,199.95,199.79,11.02760889]
[1756687346300,3.57760889,199.93,199.79,7.45]
[1756687346700,3.57760889,199.9,199.75,7.45]
[1756687347103,336.52,199.96,199.75,7.45]
[1756687347404,336.52,199.96,199.74,3.57760889]
[1756687347405,132.92,199.95,199.81,7.45]
[1756687347802,132.92,199.95,199.68,3.57760889]
[1756687347803,3.57760889,199.92,199.77,3.57760889]
[1756687348403,101.8,199.91,199.77,3.57760889]
[1756687348698,101.8,199.91,199.76,7.45]
[1756687349304,336.52,199.96,199.8,3.57760889]
[1756687349499,133.84,199.95,199.81,7.45]
[1756687350999,337.3105332,200.08,199.89,3.57760889]
[1756687351199,3.57760889,200.05,199.9,7.45]
[1756687351407,337.3105332,200.08,199.9,7.45]
[1756687351706,3.57760889,200.06,199.9,7.45]
[1756687352101,337.3105332,200.08,199.9,7.45]
[1756687352300,337.3105332,200.08,199.8,3.57760889]
[1756687352301,336.44,200.08,199.93,7.45]
[1756687352500,3.57760889,200.04,199.81,7.45]
[1756687352706,3.57760889,200.04,199.75,336.44]
[1756687352707,3.57760889,200.01,199.86,7.45]
[1756687353009,107.1,200.0,199.86,7.45]
[1756687353414,107.1,200.0,199.81,7.45]
[1756687353612,3.57760889,199.97,199.81,7.45]
[1756687354312,7.46,199.96,199.81,7.45]
[1756687355004,3.57760889,199.95,199.8,3.57760889]
[1756687356604,11.38,199.95,199.83,3.57760889]
[1756687357507,14.95760889,199.95,199.81,7.45]
[1756687357709,14.95760889,199.95,199.75,343.89]
[1756687357909,3.57760889,199.92,199.75,11.02760889]
[1756687362510,77.04,199.91,199.78,3.57760889]
[1756687362718,77.04,199.91,199.79,8.01]
[1756687364016,133.74,199.9,199.79,8.01]
[1756687366021,133.68,199.89,199.79,8.01]
[1756687366220,133.72,199.9,199.79,8.01]
[1756687366632,15.04,200.04,199.89,3.57760889]
[1756687366819,17.24,200.03,199.86,8.01]
[1756687367022,3.57760889,200.02,199.86,8.01]